fUSD/lending_fUSD_20240330
["ID","MTS","AMOUNT","RATE_DAILY","PERIOD"]
[321029785,1711803044833,-500.0,0.00041664,4]
[321029786,1711803044842,-500.0,0.00041664,4]
[321029787,1711803044851,-670.08,0.00041664,4]
[321029788,1711803044860,-3390.74,0.00041664,4]
[321029789,1711803044869,-270.71477142,0.00041664,4]
[321029790,1711803044878,-500.0,0.00041664,4]
[321029791,1711803044887,-500.0,0.00041664,4]
[321029792,1711803044896,-1506.17,0.00041664,4]
[321029793,1711803044905,-500.0,0.00041664,4]
[321029794,1711803044914,-500.0,0.00041664,4]
[321029795,1711803044923,-500.0,0.00041664,4]
[321029796,1711803044932,-2514.31,0.00041664,4]
[321029797,1711803044942,-500.0,0.00041664,4]
[321029798,1711803044951,-4769.79,0.00041664,4]
[321029799,1711803044960,-500.0,0.00041664,4]
[321029800,1711803044969,-546.38,0.00041664,4]
[321029801,1711803044978,-1675.81,0.00041664,4]
[321029802,1711803044987,-500.0,0.00041664,4]
[321029803,1711803044997,-500.0,0.00041664,4]
[321029804,1711803045005,-500.0,0.00041664,4]
[321029805,1711803045014,-10788.55,0.00041664,4]
[321029806,1711803045023,-500.0,0.00041664,4]
[321029807,1711803045033,-185.59092494,0.00041664,4]
[321029808,1711803045042,-1584.62,0.00041664,4]
[321029809,1711803045052,-500.0,0.00041664,4]
[321029810,1711803045061,-2515.94,0.00041664,4]
[321029811,1711803045070,-1036.81,0.00041664,4]
[321029812,1711803045079,-342.30969584,0.00041664,4]
[321029813,1711803045088,-500.0,0.00041664,4]
[321029814,1711803045097,-3938.3,0.00041664,4]
[321029815,1711803045106,-500.0,0.00041664,4]
[321029816,1711803045115,-1992.63,0.00041664,4]
[321029817,1711803045124,-500.0,0.00041664,4]
[321029818,1711803045134,-500.0,0.00041664,4]
[321029819,1711803045146,-500.0,0.00041664,4]
[321029820,1711803045155,-500.0,0.00041664,4]
[321029821,1711803045165,-558.71,0.00041664,4]
[321029822,1711803045174,-1538.71,0.00041664,4]
[321029823,1711803045185,-503.96547865,0.00041664,4]
[321029824,1711803045194,-1212.96,0.00041664,4]
[321029825,1711803045204,-500.0,0.00041664,4]
[321029826,1711803045214,-500.0,0.00041664,4]
[321029827,1711803045224,-445.72975385,0.00041664,4]
[321029828,1711803045233,-500.0,0.00041664,4]
[321029829,1711803045242,-500.0,0.00041664,4]
[321029830,1711803045251,-1340.76,0.00041664,4]
[321029831,1711803045260,-500.0,0.00041664,4]
[321029832,1711803045270,-2007.68,0.00041664,4]
[321029833,1711803045279,-500.0,0.00041664,4]
[321029834,1711803045288,-494.82834041,0.00041664,4]
[321029835,1711803045298,-200.0,0.00041664,2]
[321029836,1711803045308,-200.0,0.00041664,2]
[321029837,1711803045317,-162.0,0.00041664,2]
[321029838,1711803045327,-245000.0,0.00041665,2]
[321029839,1711803045339,-91068.9487,0.00041665,2]
[321029840,1711803045349,-5400.0,0.000417,15]
[321029841,1711803045358,-425.35,0.00041708,2]
[321029842,1711803045367,-292.63997449,0.0004173,2]
[321029843,1711803045376,-500.0,0.00041788,30]
[321029844,1711803045385,-500.0,0.00041788,30]
[321029845,1711803045394,-500.0,0.000418,2]
[321029846,1711803045404,-881.64955079,0.000418,4]
[321029847,1711803045413,-153.54935588,0.000418,13]
[321029848,1711803045544,-6700.0,0.000418,15]
[321029849,1711803045557,-292.63997449,0.00041813,2]
[321029850,1711803045566,-425.35,0.00041818,2]
[321029851,1711803045575,-4775.00715188,0.00041838,16]
[321029852,1711803045585,-414.85707433,0.00041838,2]
[321029853,1711803045595,-292.63997449,0.00041895,2]
[321029854,1711803045604,-167.96419123,0.00041896,120]
[321029855,1711803045613,-271.14217927,0.00041896,2]
[321029856,1711803045622,-1090.38763133,0.00041896,34]
[321029857,1711803045633,-2468.46749652,0.00041896,2]
[321029858,1711803045643,-17347.29664971,0.00041896,2]
[321029859,1711803045652,-905.26638746,0.00041896,2]
[321029860,1711803045661,-523.96987586,0.00041896,2]
[321029861,1711803045670,-1080.61285099,0.00041896,2]
[321029862,1711803045680,-156.96928883,0.00041896,2]
[321029863,1711803045689,-500.0,0.00041898,4]
[321029864,1711803045699,-500.0,0.00041898,4]
[321029865,1711803045708,-212.0,0.00041898,2]
[321029866,1711803045718,-7500.0,0.00041898,2]
[321029868,1711803045727,-1506.17,0.00041899,4]
[321029870,1711803045736,-1506.17,0.00041899,4]
[321029871,1711803045745,-1300.0,0.000419,15]
[321029872,1711803045754,-11145.0,0.00041908,3]
[321029873,1711803045764,-1104.36468148,0.00041919,2]
[321029874,1711803045773,-186.14677309,0.00041922,2]
[321029875,1711803045782,-690.40396042,0.00041923,2]
[321029877,1711803045791,-207.46314996,0.00041925,2]
[321029879,1711803045801,-207.46314996,0.00041925,2]
[321029881,1711803045810,-191.33950028,0.00041928,2]
[321029883,1711803045819,-425.35,0.00041928,2]
[321029885,1711803045828,-32726.66137463,0.00041933,2]
[321029887,1711803045837,-500.0,0.00041936,2]
[321029889,1711803045847,-615.26,0.00041936,4]
[321029892,1711803045856,-500.0,0.00041936,4]
[321029894,1711803045865,-722.99,0.00041936,4]
[321029896,1711803045874,-500.0,0.00041936,2]
[321029898,1711803045883,-500.0,0.00041937,4]
[321029900,1711803045893,-500.0,0.00041937,4]
[321029901,1711803045902,-500.0,0.00041937,4]
[321029903,1711803045913,-500.0,0.00041937,4]
[321029905,1711803045922,-500.0,0.00041937,4]
[321029906,1711803045931,-500.0,0.00041937,4]
[321029908,1711803045940,-500.0,0.00041937,4]
[321029910,1711803045949,-500.0,0.00041937,4]
[321029911,1711803045958,-500.0,0.00041937,4]
[321029913,1711803045967,-500.0,0.00041937,4]
[321029914,1711803045976,-500.0,0.00041937,4]
[321029916,1711803045985,-500.0,0.00041937,4]
[321029918,1711803045994,-500.0,0.00041937,4]
[321029919,1711803046003,-500.0,0.00041937,4]
[321029921,1711803046013,-500.0,0.00041937,4]
[321029922,1711803046022,-500.0,0.00041937,4]
[321029923,1711803046031,-500.0,0.00041937,4]
[321029924,1711803046040,-500.0,0.00041937,4]
[321029925,1711803046049,-500.0,0.00041937,4]
[321029927,1711803046058,-500.0,0.00041937,4]
[321029929,1711803046067,-500.0,0.00041937,4]
[321029931,1711803046078,-500.0,0.00041937,4]
[321029933,1711803046090,-500.0,0.00041937,4]
[321029935,1711803046099,-500.0,0.00041937,4]
[321029936,1711803046108,-500.0,0.00041937,4]
[321029937,1711803046117,-500.0,0.00041937,4]
[321029938,1711803046126,-500.0,0.00041937,4]
[321029939,1711803046135,-500.0,0.00041937,4]
[321029940,1711803046147,-500.0,0.00041937,4]
[321029941,1711803046156,-500.0,0.00041937,4]
[321029942,1711803046165,-813.38,0.00041937,4]
[321029943,1711803046174,-500.0,0.00041937,4]
[321029944,1711803046186,-500.0,0.00041937,4]
[321029945,1711803046195,-509.41435037,0.00041937,2]
[321029946,1711803046203,-500.0,0.00041937,4]
[321029947,1711803046213,-521.36799745,0.00041937,4]
[321029948,1711803046223,-500.0,0.00041937,4]
[321029949,1711803046232,-537.89584665,0.00041937,4]
[321029950,1711803046241,-500.0,0.00041937,4]
[321029951,1711803046250,-500.0,0.00041937,4]
[321029952,1711803046259,-500.0,0.00041937,4]
[321029953,1711803046268,-885.89,0.00041937,4]
[321029954,1711803046278,-500.0,0.00041937,4]
[321029955,1711803046287,-500.0,0.00041937,4]
[321029956,1711803046296,-500.0,0.00041937,4]
[321029957,1711803046306,-500.0,0.00041937,4]
[321029958,1711803046316,-508.40428947,0.00041937,4]
[321029959,1711803046326,-500.0,0.00041937,4]
[321029960,1711803046342,-500.0,0.00041937,4]
[321029961,1711803046364,-500.0,0.00041937,4]
[321029962,1711803046382,-4111.75,0.00041937,4]
[321029963,1711803046402,-500.0,0.00041937,4]
[321029964,1711803046419,-500.0,0.00041937,4]
[321029965,1711803046437,-500.0,0.00041937,4]
[321029966,1711803046456,-500.0,0.00041937,4]
[321029967,1711803046472,-500.0,0.00041937,4]
[321029968,1711803046491,-500.0,0.00041937,4]
[321029969,1711803046507,-500.0,0.00041937,4]
[321029970,1711803046525,-3150.23,0.00041937,4]
[321029971,1711803046548,-500.0,0.00041937,4]
[321029972,1711803046564,-500.0,0.00041937,4]
[321029973,1711803046581,-500.0,0.00041937,4]
[321029974,1711803046598,-500.0,0.00041937,4]
[321029975,1711803046613,-500.0,0.00041937,4]
[321029976,1711803046626,-500.0,0.00041937,4]
[321029977,1711803046642,-500.0,0.00041937,4]
[321029978,1711803046657,-500.0,0.00041937,4]
[321029979,1711803046673,-500.0,0.00041937,4]
[321029980,1711803046689,-500.0,0.00041937,4]
[321029981,1711803046704,-520.51612845,0.00041937,4]
[321029982,1711803046719,-948.22,0.00041937,4]
[321029983,1711803046734,-509.70964772,0.00041937,4]
[321029984,1711803046753,-500.0,0.00041937,4]
[321029985,1711803046768,-570.5,0.00041937,4]
[321029986,1711803046784,-512.43031729,0.00041937,4]
[321029987,1711803046800,-500.0,0.00041937,4]
[321029988,1711803046815,-500.0,0.00041937,4]
[321029989,1711803046830,-500.0,0.00041937,4]
[321029990,1711803046846,-500.0,0.00041937,4]
[321029991,1711803046860,-749.33,0.00041937,4]
[321029992,1711803046877,-500.0,0.00041937,4]
[321029993,1711803046892,-500.0,0.00041937,4]
[321029994,1711803046907,-500.0,0.00041937,4]
[321029995,1711803046922,-500.0,0.00041937,4]
[321029996,1711803046937,-500.0,0.00041937,4]
[321029997,1711803046952,-21534.84,0.00041937,4]
[321029998,1711803046967,-500.0,0.00041937,4]
[321029999,1711803046983,-500.0,0.00041937,4]
[321030000,1711803046998,-512.38746551,0.00041937,4]
[321030001,1711803047013,-500.0,0.00041937,4]
[321030002,1711803047028,-500.0,0.00041937,4]
[321030003,1711803047044,-500.0,0.00041937,4]
[321030004,1711803047060,-2295.25,0.00041937,4]
[321030005,1711803047076,-500.0,0.00041937,4]
[321030006,1711803047092,-505.82572426,0.00041937,4]
[321030007,1711803047108,-500.0,0.00041937,4]
[321030008,1711803047123,-500.0,0.00041937,4]
[321030009,1711803047140,-500.0,0.00041937,4]
[321030010,1711803047157,-500.0,0.00041937,4]
[321030011,1711803047173,-500.0,0.00041937,4]
[321030012,1711803047188,-500.0,0.00041937,4]
[321030013,1711803047204,-500.0,0.00041937,4]
[321030014,1711803047219,-500.0,0.00041937,4]
[321030015,1711803047235,-524.62532793,0.00041937,4]
[321030016,1711803047251,-500.0,0.00041937,4]
[321030017,1711803047266,-521.75668658,0.00041937,4]
[321030018,1711803047282,-500.0,0.00041937,4]
[321030019,1711803047296,-500.0,0.00041937,4]
[321030020,1711803047311,-500.0,0.00041937,4]
[321030021,1711803047327,-521.6577331,0.00041937,4]
[321030022,1711803047343,-500.0,0.00041937,4]
[321030023,1711803047359,-500.0,0.00041937,4]
[321030024,1711803047375,-500.0,0.00041937,4]
[321030025,1711803047390,-500.0,0.00041937,4]
[321030026,1711803047405,-1281.06,0.00041937,4]
[321030027,1711803047421,-500.0,0.00041937,4]
[321030028,1711803047436,-535.75570167,0.00041937,4]
[321030029,1711803047451,-795.98,0.00041937,4]
[321030030,1711803047466,-500.0,0.00041937,4]
[321030031,1711803047481,-500.0,0.00041937,4]
[321030032,1711803047496,-500.0,0.00041937,4]
[321030033,1711803047511,-822.16,0.00041937,4]
[321030034,1711803047527,-500.0,0.00041937,4]
[321030035,1711803047542,-500.0,0.00041937,4]
[321030036,1711803047557,-2801.82,0.00041937,4]
[321030037,1711803047572,-1169.1,0.00041937,4]
[321030038,1711803047587,-500.0,0.00041937,4]
[321030039,1711803047604,-500.0,0.00041937,4]
[321030040,1711803047618,-500.0,0.00041937,4]
[321030041,1711803047627,-693.56,0.00041937,4]
[321030042,1711803047637,-856.85,0.00041937,4]
[321030043,1711803047646,-500.0,0.00041937,4]
[321030044,1711803047656,-500.0,0.00041937,4]
[321030045,1711803047897,-500.0,0.00041937,4]
[321030046,1711803047924,-500.0,0.00041937,4]
[321030047,1711803047937,-500.0,0.00041937,4]
[321030048,1711803047947,-500.0,0.00041937,4]
[321030049,1711803047957,-500.0,0.00041937,4]
[321030050,1711803047966,-500.0,0.00041937,4]
[321030051,1711803047975,-937.74,0.00041937,4]
[321030052,1711803047985,-1771.58,0.00041937,4]
[321030053,1711803047994,-500.0,0.00041937,4]
[321030054,1711803048004,-500.0,0.00041937,4]
[321030055,1711803048013,-500.0,0.00041937,4]
[321030056,1711803048022,-500.0,0.00041937,4]
[321030057,1711803048031,-500.0,0.00041937,4]
[321030058,1711803048041,-500.0,0.00041937,4]
[321030059,1711803048051,-500.0,0.00041937,4]
[321030060,1711803048060,-785.64,0.00041937,4]
[321030061,1711803048069,-1246.1,0.00041937,4]
[321030062,1711803048079,-500.0,0.00041937,4]
[321030063,1711803048088,-500.0,0.00041937,4]
[321030064,1711803048098,-500.0,0.00041937,4]
[321030065,1711803048108,-2006.66,0.00041937,4]
[321030066,1711803048117,-500.0,0.00041937,4]
[321030067,1711803048127,-500.0,0.00041937,4]
[321030068,1711803048137,-500.0,0.00041937,4]
[321030069,1711803048151,-3946.65,0.00041937,4]
[321030070,1711803048160,-524.6,0.00041937,4]
[321030071,1711803048170,-500.0,0.00041937,4]
[321030072,1711803048179,-500.0,0.00041937,4]
[321030073,1711803048188,-1363.66,0.00041937,4]
[321030074,1711803048198,-150.0,0.00041937,4]
[321030075,1711803048207,-1034.32,0.00041937,4]
[321030076,1711803048216,-500.0,0.00041937,4]
[321030077,1711803048226,-500.0,0.00041937,4]
[321030078,1711803048235,-500.0,0.00041937,4]
[321030079,1711803048245,-318.01834451,0.00041937,4]
[321030080,1711803048254,-303.20378561,0.00041937,4]
[321030081,1711803048263,-5177.16,0.00041937,4]
[321030082,1711803048272,-1506.17,0.00041937,4]
[321030083,1711803048282,-500.0,0.00041937,4]
[321030084,1711803048291,-500.0,0.00041937,4]
[321030085,1711803048300,-3299.68,0.00041937,4]
[321030086,1711803048309,-517.66706466,0.00041937,4]
[321030087,1711803048319,-500.0,0.00041937,4]
[321030088,1711803048329,-2002.29,0.00041937,4]
[321030089,1711803048338,-562.08401575,0.00041937,4]
[321030090,1711803048349,-500.0,0.00041937,4]
[321030091,1711803048358,-500.0,0.00041937,4]
[321030092,1711803048368,-4982.4,0.00041937,4]
[321030093,1711803048377,-3127.29,0.00041937,4]
[321030094,1711803048386,-500.0,0.00041937,4]
[321030095,1711803048396,-500.0,0.00041937,4]
[321030096,1711803048404,-500.0,0.00041937,4]
[321030097,1711803048414,-2062.41,0.00041937,4]
[321030098,1711803048423,-500.0,0.00041937,4]
[321030099,1711803048432,-4477.63,0.00041937,4]
[321030100,1711803048442,-179.52111261,0.00041937,4]
[321030101,1711803048451,-500.0,0.00041937,4]
[321030102,1711803048461,-3072.89,0.00041937,4]
[321030103,1711803048470,-500.0,0.00041937,4]
[321030104,1711803048480,-500.0,0.00041937,4]
[321030105,1711803048489,-500.0,0.00041937,4]
[321030106,1711803048498,-500.0,0.00041937,4]
[321030107,1711803048508,-500.0,0.00041937,4]
[321030108,1711803048517,-764.59,0.00041937,4]
[321030109,1711803048527,-500.0,0.00041937,4]
[321030110,1711803048537,-1508.68,0.00041937,4]
[321030111,1711803048546,-500.0,0.00041937,4]
[321030112,1711803048556,-500.0,0.00041937,4]
[321030113,1711803048566,-960.45,0.00041937,4]
[321030114,1711803048575,-500.0,0.00041937,4]
[321030115,1711803048585,-500.0,0.00041937,4]
[321030116,1711803048595,-500.0,0.00041937,4]
[321030117,1711803048605,-556.56,0.00041937,4]
[321030118,1711803048614,-642.79,0.00041937,4]
[321030119,1711803048624,-500.0,0.00041937,4]
[321030120,1711803048634,-1032.8,0.00041937,4]
[321030121,1711803048643,-4727.83,0.00041937,4]
[321030122,1711803048652,-500.0,0.00041937,4]
[321030123,1711803048662,-500.0,0.00041937,4]
[321030124,1711803048671,-500.0,0.00041937,4]
[321030125,1711803048681,-684.84,0.00041937,4]
[321030126,1711803048691,-500.0,0.00041937,4]
[321030127,1711803048700,-500.0,0.00041937,4]
[321030128,1711803048710,-500.0,0.00041937,4]
[321030129,1711803048719,-500.0,0.00041937,4]
[321030130,1711803048729,-500.0,0.00041937,4]
[321030131,1711803048739,-1093.19,0.00041937,4]
[321030132,1711803048749,-636.19,0.00041937,4]
[321030133,1711803048759,-500.0,0.00041937,4]
[321030134,1711803048770,-2515.49,0.00041937,4]
[321030135,1711803048779,-505.03,0.00041937,2]
[321030136,1711803048788,-500.0,0.00041937,4]
[321030137,1711803048798,-500.0,0.00041937,4]
[321030138,1711803048807,-500.0,0.00041937,4]
[321030139,1711803048817,-500.0,0.00041937,4]
[321030140,1711803048826,-500.0,0.00041937,4]
[321030141,1711803048835,-690.40396042,0.00041937,2]
[321030142,1711803048845,-32726.66137463,0.00041938,2]
[321030143,1711803048854,-500.0,0.00041938,4]
[321030144,1711803048865,-500.0,0.00041938,4]
[321030145,1711803048874,-500.0,0.00041938,4]
[321030146,1711803048883,-500.0,0.00041938,4]
[321030147,1711803048892,-525.44,0.00041938,4]
[321030148,1711803048902,-500.0,0.00041938,4]
[321030149,1711803048911,-500.0,0.00041938,4]
[321030150,1711803048921,-500.0,0.00041938,4]
[321030151,1711803048931,-500.0,0.00041938,4]
[321030152,1711803048940,-500.0,0.00041938,2]
[321030153,1711803048950,-500.0,0.00041938,4]
[321030154,1711803048959,-500.0,0.00041938,4]
[321030155,1711803048968,-507.90661187,0.00041938,4]
[321030156,1711803048977,-581.69,0.00041938,4]
[321030157,1711803048987,-500.0,0.00041938,4]
[321030158,1711803048995,-736.56,0.00041938,4]
[321030159,1711803049005,-500.0,0.00041938,4]
[321030160,1711803049015,-500.0,0.00041938,4]
[321030161,1711803049025,-500.0,0.00041938,4]
[321030162,1711803049034,-500.0,0.00041938,4]
[321030163,1711803049043,-500.0,0.00041938,4]
[321030164,1711803049053,-500.0,0.00041938,4]
[321030165,1711803049062,-502.01,0.00041938,4]
[321030166,1711803049071,-500.0,0.00041938,4]
[321030167,1711803049080,-514.89,0.00041938,4]
[321030168,1711803049089,-500.0,0.00041938,4]
[321030169,1711803049098,-734.52,0.00041938,4]
[321030170,1711803049107,-500.0,0.00041938,4]
[321030171,1711803049116,-796.33,0.00041938,4]
[321030172,1711803049125,-500.0,0.00041938,4]
[321030173,1711803049135,-500.0,0.00041938,4]
[321030174,1711803049148,-500.0,0.00041938,2]
[321030175,1711803049157,-500.0,0.00041938,4]
[321030176,1711803049166,-500.0,0.00041938,4]
[321030177,1711803049175,-500.0,0.00041938,4]
[321030178,1711803049184,-604.79,0.00041938,4]
[321030179,1711803049194,-500.0,0.00041938,4]
[321030180,1711803049203,-500.0,0.00041938,4]
[321030181,1711803049212,-653.08,0.00041938,4]
[321030182,1711803049223,-500.0,0.00041938,4]
[321030183,1711803049233,-500.0,0.00041938,4]
[321030184,1711803049242,-500.0,0.00041938,4]
[321030185,1711803049252,-500.0,0.00041938,4]
[321030186,1711803049261,-500.0,0.00041938,4]
[321030187,1711803049270,-500.0,0.00041938,4]
[321030188,1711803049279,-510.17005473,0.00041938,4]
[321030189,1711803049288,-500.0,0.00041938,4]
[321030190,1711803049297,-500.0,0.00041938,4]
[321030191,1711803049306,-500.0,0.00041938,4]
[321030192,1711803049316,-500.0,0.00041938,4]
[321030193,1711803049324,-555.09,0.00041938,4]
[321030194,1711803049333,-500.0,0.00041938,4]
[321030195,1711803049343,-500.0,0.00041938,4]
[321030196,1711803049352,-500.0,0.00041938,4]
[321030197,1711803049361,-565.27,0.00041938,4]
[321030198,1711803049370,-500.0,0.00041938,4]
[321030199,1711803049380,-500.0,0.00041938,4]
[321030200,1711803049389,-500.0,0.00041938,4]
[321030201,1711803049398,-507.41000175,0.00041938,4]
[321030202,1711803049407,-645.85,0.00041938,4]
[321030203,1711803049417,-500.0,0.00041938,4]
[321030204,1711803049426,-500.0,0.00041938,4]
[321030205,1711803049435,-500.0,0.00041938,4]
[321030206,1711803049444,-500.0,0.00041938,4]
[321030207,1711803049454,-500.0,0.00041938,4]
[321030208,1711803049463,-500.0,0.00041938,4]
[321030209,1711803049472,-868.78,0.00041938,4]
[321030210,1711803049482,-500.0,0.00041938,4]
[321030211,1711803049491,-509.57,0.00041938,4]
[321030212,1711803049500,-816.86,0.00041938,4]
[321030213,1711803049510,-500.0,0.00041938,4]
[321030214,1711803049519,-500.0,0.00041938,4]
[321030215,1711803049528,-500.0,0.00041938,4]
[321030216,1711803049537,-500.0,0.00041938,4]
[321030217,1711803049546,-500.0,0.00041938,4]
[321030218,1711803049555,-500.0,0.00041938,4]
[321030219,1711803049565,-500.0,0.00041938,4]
[321030220,1711803049574,-267.66,0.00041938,4]
[321030221,1711803049583,-598.64,0.00041938,4]
[321030222,1711803049593,-3164.42,0.00041938,4]
[321030223,1711803049602,-541.82619708,0.00041938,4]
[321030224,1711803049612,-500.0,0.00041938,4]
[321030225,1711803049621,-500.0,0.00041938,4]
[321030226,1711803049630,-500.0,0.00041938,4]
[321030227,1711803049640,-1208.47,0.00041938,4]
[321030228,1711803049649,-534.35903184,0.00041938,4]
[321030229,1711803049658,-500.0,0.00041938,4]
[321030230,1711803049667,-500.0,0.00041938,4]
[321030231,1711803049676,-500.0,0.00041938,4]
[321030232,1711803049685,-546.16,0.00041938,4]
[321030233,1711803049694,-500.0,0.00041938,4]
[321030234,1711803049703,-726.39,0.00041938,4]
[321030235,1711803049712,-1152.1,0.00041938,4]
[321030236,1711803049722,-509.06411373,0.00041938,4]
[321030237,1711803049730,-500.0,0.00041938,4]
[321030238,1711803049740,-629.69,0.00041938,4]
[321030239,1711803049749,-1077.69,0.00041938,4]
[321030240,1711803049759,-550.3,0.00041938,4]
[321030241,1711803049768,-4312.37,0.00041938,4]
[321030242,1711803049778,-500.0,0.00041938,4]
[321030243,1711803049788,-523.08654572,0.00041938,4]
[321030244,1711803049797,-500.0,0.00041938,4]
[321030245,1711803049807,-4708.9,0.00041938,4]
[321030246,1711803049816,-2172.33,0.00041938,4]
[321030247,1711803049826,-1148.61,0.00041938,4]
[321030248,1711803049835,-1089.44,0.00041938,4]
[321030249,1711803049845,-500.0,0.00041938,4]
[321030250,1711803049855,-3452.17,0.00041938,4]
[321030251,1711803049864,-581.47,0.00041938,4]
[321030252,1711803049873,-500.0,0.00041938,4]
[321030253,1711803049883,-8438.11,0.00041938,4]
[321030254,1711803049892,-1472.81,0.00041938,4]
[321030255,1711803049901,-500.0,0.00041938,4]
[321030256,1711803049910,-1051.72,0.00041938,4]
[321030257,1711803049920,-654.91,0.00041938,4]
[321030258,1711803049929,-824.09,0.00041938,4]
[321030259,1711803049938,-6226.77,0.00041938,4]
[321030260,1711803049947,-500.0,0.00041938,4]
[321030261,1711803049956,-744.17,0.00041938,4]
[321030262,1711803049965,-4243.88,0.00041938,4]
[321030263,1711803049975,-500.0,0.00041938,4]
[321030264,1711803049984,-500.0,0.00041938,4]
[321030265,1711803049995,-500.0,0.00041938,4]
[321030266,1711803050006,-944.84,0.00041938,4]
[321030267,1711803050016,-3547.06,0.00041938,4]
[321030268,1711803050025,-1266.91,0.00041938,4]
[321030269,1711803050034,-500.0,0.00041938,4]
[321030270,1711803050043,-500.0,0.00041938,4]
[321030271,1711803050053,-3376.77,0.00041938,4]
[321030272,1711803050062,-755.55,0.00041938,4]
[321030273,1711803050071,-1207.46,0.00041938,4]
[321030274,1711803050080,-1583.11,0.00041938,4]
[321030275,1711803050089,-3396.1,0.00041938,4]
[321030276,1711803050099,-883.66,0.00041938,4]
[321030277,1711803050108,-5376.56,0.00041938,4]
[321030278,1711803050117,-1007.19781613,0.00041938,4]
[321030279,1711803050126,-500.0,0.00041938,4]
[321030280,1711803050136,-5749.38,0.00041938,4]
[321030281,1711803050150,-903.19,0.00041938,4]
[321030282,1711803050159,-1001.61,0.00041938,4]
[321030283,1711803050169,-500.0,0.00041938,4]
[321030284,1711803050178,-1146.85,0.00041938,4]
[321030285,1711803050188,-1830.55,0.00041938,4]
[321030286,1711803050198,-500.0,0.00041938,4]
[321030287,1711803050207,-2065.82,0.00041938,4]
[321030288,1711803050216,-1817.24,0.00041938,4]
[321030289,1711803050226,-3683.66,0.00041938,4]
[321030290,1711803050235,-7238.44,0.00041938,4]
[321030291,1711803050245,-500.0,0.00041938,4]
[321030292,1711803050254,-3164.86,0.00041938,4]
[321030293,1711803050264,-3640.23,0.00041938,4]
[321030294,1711803050273,-1058.9,0.00041938,4]
[321030295,1711803050283,-500.0,0.00041938,4]
[321030296,1711803050292,-15850.79,0.00041938,4]
[321030297,1711803050302,-3418.7,0.00041938,4]
[321030298,1711803050311,-500.0,0.00041938,4]
[321030299,1711803050320,-500.0,0.00041938,4]
[321030300,1711803050330,-4521.29,0.00041938,4]
[321030301,1711803050339,-500.0,0.00041938,4]
[321030302,1711803050351,-4215.18,0.00041938,4]
[321030303,1711803050360,-581.99,0.00041938,4]
[321030304,1711803050369,-500.0,0.00041938,4]
[321030305,1711803050379,-500.0,0.00041938,4]
[321030306,1711803050388,-500.0,0.00041938,4]
[321030307,1711803050397,-500.0,0.00041938,4]
[321030308,1711803050407,-670.08,0.00041938,4]
[321030309,1711803050416,-3390.74,0.00041938,4]
[321030310,1711803050425,-500.0,0.00041938,4]
[321030311,1711803050435,-500.0,0.00041938,4]
[321030312,1711803050445,-500.0,0.00041938,4]